[Event "Tirnavia Reti Memorial-IM 2022"]
[Site "Trnava"]
[Date "2022.08.10"]
[Round "1.6"]
[White "Skreno, Vladimir"]
[Black "Papp, Levente"]
[Result "1-0"]
[ECO "A46"]
[WhiteElo "2083"]
[BlackElo "2394"]
[Annotator "TA"]
[PlyCount "181"]
[EventDate "2022.08.10"]
[EventType "tourn"]
[EventCountry "SVK"]
[SourceTitle "playchess.com"]
[Source "ChessBase"]
[SourceQuality "1"]
[TimeControl "40/5400+30:1800+30"]

{[%evp 9,181,0,4,-26,-22,-24,0,-24,-18,-18,-21,-18,0,0,45,14,26,-14,-10,-31,-17,-16,-5,-67,-32,-29,0,-54,-26,-166,6,-55,0,0,45,-14,25,23,21,0,0,0,0,0,32,18,16,0,0,0,0,0,0,0,0,0,0,-119,-87,-145,-143,-151,-154,-149,-146,-129,-134,-123,-124,-143,-142,-128,-124,-134,-141,-151,-130,-131,-104,-91,-83,-93,-84,-104,-75,-98,-86,-129,-127,-149,-90,-122,-122,-120,-68,-93,-69,-92,-87,-94,-26,-202,0,-101,-68,-140,-125,-131,-63,-82,-50,-66,-66,-66,0,-27,-14,-147,-150,-104,-113,-136,-123,-117,-133,-120,-121,-121,-132,-132,-132,-80,0,0,0,-8,-8,-8,-8,-8,0,0,0,0,0,0,0,0,0,0,0,0,20,17,18,0,0,0,0,0,0,0,0,0,0,0,29980,29981,29981,29982,29982,29983,29983,29984]} 1. d4 {[%emt 0:00:07]} Nf6 {[%emt 0:00:16]} 2. Nf3 {[%emt 0:00:15]} e6 {[%emt 0:00:22]} 3. Bg5 {[%emt 0:01:36]} c5 {[%emt 0:00:28]} 4. c3 {[%emt 0:00:57]} Qb6 {[%emt 0:03:06]} 5. Qb3 {[%emt 0:04:00]} Ne4 {[%emt 0:12:01]} 6. e3 {[%emt 0:07:33] A46: 1 d4 Nf6 2 Nf3 e6: Torre, London and Colle Systems.} Nxg5 {[%emt 0:07:23]} 7. Nxg5 {[%emt 0:00:26]} Qc7 {[%emt 0:00:15]} 8. Nd2 {[%emt 0:02:37] [#] The position is equal.} d5 $146 {[%emt 0:00:51]} ({Predecessor:} 8... Be7 9. Ngf3 b6 10. Rd1 Bb7 11. Bd3 Nc6 12. O-O O-O 13. Rfe1 d5 14. Bb1 c4 {0-1 (61) Kreindl,H (2200)-Porper,E (2479) Vienna 2006}) 9. Bb5+ {[%emt 0:04:48]} Nc6 {[%emt 0:01:10]} 10. O-O {[%emt 0:02:27]} Bd6 {[%emt 0:01:16]} 11. dxc5 {[%emt 0:10:36]} Bxh2+ {[%emt 0:03:07]} 12. Kh1 {[%emt 0:00:18] And now g3 would win.} Be5 {[%emt 0:01:07]} 13. Ngf3 {[%emt 0:03:17]} (13. e4 $5 {[%cal Re4d5]}) 13... Bf6 {[%emt 0:03:28]} 14. c4 {[%emt 0:09:24]} O-O {[%emt 0:04:36]} 15. cxd5 {[%emt 0:01:02]} exd5 {[%emt 0:02:51]} 16. a3 {[%emt 0:13:38]} (16. Qxd5 $11 Rd8 17. Qe4) 16... Ne5 {[%emt 0:13:22]} 17. Rac1 {[%emt 0:04:57]} Bf5 {[%emt 0:07:21]} 18. Rfd1 {[%emt 0:04:20]} (18. Be2 $11) 18... Rad8 {[%emt 0:02:08]} (18... Ng4 $5 {[%cal Rg4f2]} 19. Kg1 Bh4 $1 $15) 19. Be2 {[%emt 0:02:31]} (19. Kg1 $11) 19... Rfe8 $2 {[%emt 0:08:59]} (19... Ng4 $19 20. Kg1 Bh4 $1) 20. Nf1 {[%emt 0:03:19]} (20. Nxe5 $11 Rxe5 21. Nf3) 20... Be6 {[%emt 0:16:24]} (20... Nc6 $1 $15) 21. Nd4 $11 {[%emt 0:03:52]} Bg4 {[%emt 0:02:59]} 22. Qc2 {[%emt 0:04:08]} (22. Bxg4 $14 Nxg4 23. Rc2) 22... Qd7 {[%emt 0:02:09]} 23. b4 {[%emt 0:02:51]} Nc4 {[%emt 0:01:36]} 24. a4 {[%emt 0:03:01]} Bxe2 {[%emt 0:01:27]} 25. Nxe2 {[%emt 0:02:32] Pair of Knights!} Nb2 {[%emt 0:00:20]} 26. Rd2 {[%emt 0:00:59][%cal Bd1d2,Bd2a2,Ba2a7,Ba7b7][%mdl 32]} Qxa4 {[%emt 0:00:23]} (26... Nc4 $5 {[%cal Rc4d2]} 27. Rd3 Ne5 $11) 27. Qxa4 {[%emt 0:00:55]} Nxa4 {[%emt 0:00:01]} 28. Ra2 {[%emt 0:01:47]} Nb2 $36 {[%emt 0:00:11][%cal Ba4b2,Bb2d3,Bd3f2,Bf2g4,Bg4e3,Be3c4,Bc4d6][%mdl 2080] Black is pushing.} 29. Rxa7 {[%emt 0:03:41]} Nd3 {[%emt 0:00:06][%csl LRb4,LRc1,LRf2]} 30. Rb1 {[%emt 0:01:34]} Nxf2+ {[%emt 0:00:03]} 31. Kg1 {[%emt 0:00:09]} Ng4 {[%emt 0:00:06]} 32. Rxb7 {[%emt 0:00:48]} Nxe3 {[%emt 0:00:02]} 33. c6 {[%emt 0:00:57]} (33. Nxe3 $11 {keeps the balance.} Rxe3 34. Kf1) 33... Nc4 {[%emt 0:01:15]} 34. c7 {[%emt 0:00:54]} (34. Nf4 $142) 34... Rc8 {[%emt 0:00:13]} ({Don't take} 34... Rxe2 35. cxd8=N Bxd8 36. Rd1 $14) 35. Nf4 {[%emt 0:00:55]} Nd6 {[%emt 0:02:09]} 36. Rb8 {[%emt 0:00:00]} Rxb8 {[%emt 0:00:13]} 37. cxb8=Q {[%emt 0:00:00]} Rxb8 {[%emt 0:00:03]} 38. Nxd5 {[%emt 0:00:00]} Bd4+ {[%emt 0:00:07]} 39. Kh1 {[%emt 0:00:34]} Rb5 {[%emt 0:00:56]} 40. Nfe3 {[%emt 0:00:49]} g6 {[%emt 0:01:59]} 41. Rd1 {[%emt 0:02:04]} Bxe3 {[%emt 0:13:02]} 42. Nxe3 $17 {[%emt 0:00:14][%mdl 4096] Endgame KRN-KRN} Ne4 {[%emt 0:00:16] White must now prevent ...Nf2+.} 43. Rd4 {[%emt 0:03:20]} Nf6 {[%emt 0:01:29]} 44. Kg1 {[%emt 0:01:23]} Kf8 {[%emt 0:00:23]} 45. Kf1 {[%emt 0:00:20]} Ke7 {[%emt 0:02:57]} 46. Ke2 {[%emt 0:00:24]} Ke6 {[%emt 0:01:29]} 47. Kd3 {[%emt 0:02:00]} h5 {[%emt 0:03:15]} 48. Kc4 {[%emt 0:03:43]} Re5 {[%emt 0:00:07]} 49. Rd3 {[%emt 0:01:30]} Nd7 {[%emt 0:01:40]} (49... Ne4 $142 50. Kb3 Rg5) 50. Ra3 {[%emt 0:03:55]} Re4+ {[%emt 0:08:07]} 51. Kb5 {[%emt 0:01:14]} Rd4 {[%emt 0:00:58]} (51... h4 $17 52. Ra6+ Ke5 53. Nc4+ Kf4) 52. Nc4 {[%emt 0:05:26]} h4 {[%emt 0:00:48]} 53. Re3+ {[%emt 0:01:38]} Kf6 {[%emt 0:00:19]} 54. Rf3+ {[%emt 0:01:48]} Kg7 {[%emt 0:00:05]} (54... Ke7 $17 {...f5 is the strong threat.} 55. Re3+ Kd8) 55. Rc3 $2 {[%emt 0:00:49]} (55. Rf2 $11 {and White is okay.}) 55... Nf6 $2 {[%emt 0:01:01]} (55... f5 $19 {Threatens to win with ...f4.} 56. Ka5 f4) 56. Ka5 {[%emt 0:02:30]} (56. Kc6 $11 {remains equal.}) 56... Nd5 $1 {[%emt 0:00:23]} 57. Rc1 {[%emt 0:02:22]} (57. Rc2 $15) 57... Re4 {[%emt 0:02:50]} 58. Rc2 {[%emt 0:02:00] Against Re2} Re1 {[%emt 0:00:21]} ({Black should play} 58... Re8 $1 $17 {aiming for ...Ra8+.} 59. Ka4 Rc8) 59. Rd2 $15 {[%emt 0:02:07]} Ra1+ {[%emt 0:00:28]} 60. Kb5 {[%emt 0:00:08]} Nc3+ {[%emt 0:00:32]} 61. Kc6 {[%emt 0:00:37]} Ra8 {[%emt 0:00:50]} ({Black should try} 61... Ra4 $15 62. Rb2 g5) 62. Nb6 {[%emt 0:00:38]} (62. Nd6 $5 {[%cal Rb4b5]}) 62... Re8 {[%emt 0:00:11]} 63. Rc2 {[%emt 0:01:22]} (63. Nd5 $11) 63... Re6+ $17 {[%emt 0:00:06]} 64. Kc5 {[%emt 0:00:20]} (64. Kb7 $142 Nb5 65. Nd5) 64... Ne4+ {[%emt 0:00:07]} 65. Kb5 {[%emt 0:00:32]} g5 {[%emt 0:00:12]} 66. Nc4 {[%emt 0:00:29]} Re8 {[%emt 0:01:21]} 67. Kc6 {[%emt 0:00:29]} Rc8+ {[%emt 0:00:15]} 68. Kd5 {[%emt 0:00:52]} Nf6+ {[%emt 0:00:02]} 69. Kd6 {[%emt 0:00:31]} Rb8 {[%emt 0:00:14]} 70. Rb2 {[%emt 0:00:19]} (70. Kc5 $142) 70... Ne4+ {[%emt 0:00:59]} (70... Rd8+ $17 71. Kc5 Ne4+ 72. Kc6 Rc8+ 73. Kd5 Nf6+ 74. Kd4 Rd8+ 75. Kc5 Ne4+ 76. Kb6 Rd4) 71. Kc7 $11 {[%emt 0:00:16]} Rb5 {[%emt 0:00:12]} 72. Kc6 {[%emt 0:00:34]} Rf5 {[%emt 0:00:17]} 73. Ne3 {[%emt 0:00:53]} Rf6+ {[%emt 0:00:34]} 74. Kc7 {[%emt 0:00:32]} Nc3 {[%emt 0:01:46]} 75. b5 {[%emt 0:00:32]} Re6 {[%emt 0:00:01]} 76. Nc4 {[%emt 0:00:45]} Nd5+ {[%emt 0:00:49]} 77. Kd7 {[%emt 0:00:24]} Re4 {[%emt 0:00:47]} 78. Nd6 {[%emt 0:00:32]} Nf6+ {[%emt 0:01:46]} 79. Kc6 {[%emt 0:00:27]} Re1 $1 {[%emt 0:00:28]} 80. Rc2 {[%emt 0:00:37] Inhibits Rc1.} Rb1 {[%emt 0:00:59]} 81. b6 {[%emt 0:00:12]} Nd5 $1 {[%emt 0:00:54]} 82. Nf5+ {[%emt 0:01:26]} Kg6 {[%emt 0:00:14]} 83. Kxd5 {[%emt 0:00:24]} Kxf5 {[%emt 0:00:08] KR-KR} 84. Kc6 {[%emt 0:00:30]} Kg4 {[%emt 0:00:37]} 85. Rc5 {[%emt 0:00:33] Strongly threatening b7.} f5 {[%emt 0:00:48]} 86. Rb5 {[%emt 0:00:15]} Rc1+ {[%emt 0:00:06]} 87. Kd7 {[%emt 0:00:07] Intending b7 and mate.} Ra1 $2 {[%emt 0:00:20][%mdl 8192]} (87... Rd1+ $11 88. Ke7 Re1+ 89. Kd8 Rd1+ 90. Kc8 Rc1+ 91. Kd7 Rd1+ 92. Ke7 Re1+ 93. Kf7 Rd1) 88. b7 {[%emt 0:00:34] White mates.} Ra7 {[%emt 0:00:10] [#]} 89. Ke6 $1 {[%emt 0:00:17]} Rxb7 {[%emt 0:00:25]} 90. Rxb7 {[%emt 0:00:00]} f4 {[%emt 0:00:09] [#]} 91. Rb3 $1 {[%emt 0:00:35] White used his chance.  Weighted Error Value: White=0.36/Black=0.24 (precise)} 1-0

[Event "Tirnavia Reti Memorial-IM 2022"]
[Site "Trnava"]
[Date "2022.08.10"]
[Round "1.7"]
[White "Straka, Jozef"]
[Black "Petran, Peter"]
[Result "1-0"]
[ECO "A42"]
[WhiteElo "2300"]
[BlackElo "2234"]
[Annotator "RC"]
[PlyCount "103"]
[EventDate "2022.08.10"]
[EventType "tourn"]
[EventCountry "SVK"]
[SourceTitle "playchess.com"]
[Source "ChessBase"]
[SourceQuality "1"]
[TimeControl "40/5400+30:1800+30"]

1. d4 {[%emt 0:00:07]} g6 {[%emt 0:00:06]} 2. c4 {[%emt 0:00:17]} Bg7 {[%emt 0:00:08]} 3. e4 {[%emt 0:00:17]} d6 {[%emt 0:02:39]} 4. Nc3 {[%emt 0:01:30]} e5 {[%emt 0:00:10]} 5. d5 {[%emt 0:02:15]} Nd7 {[%emt 0:08:24]} 6. h4 {[%emt 0:01:40]} h6 {[%emt 0:03:39]} 7. h5 {[%emt 0:00:34]} g5 {[%emt 0:00:26]} 8. g4 {[%emt 0:03:33]} a5 {[%emt 0:00:17]} 9. Nge2 {[%emt 0:06:01]} Nc5 {[%emt 0:00:27]} 10. Ng3 {[%emt 0:01:03]} Nf6 {[%emt 0:04:48]} 11. Be2 {[%emt 0:04:30]} Bd7 {[%emt 0:01:11]} 12. Be3 {[%emt 0:06:50]} Bf8 {[%emt 0:04:06]} 13. O-O {[%emt 0:04:31]} b6 {[%emt 0:04:17]} 14. b3 {[%emt 0:03:11]} Bg7 {[%emt 0:05:09]} 15. f3 {[%emt 0:03:23]} O-O {[%emt 0:00:17]} 16. Qd2 {[%emt 0:03:06]} Kh7 {[%emt 0:03:44]} 17. Kg2 {[%emt 0:02:49]} Ng8 {[%emt 0:00:39]} 18. Bd1 {[%emt 0:01:59]} Qf6 {[%emt 0:17:26]} 19. a3 {[%emt 0:06:46]} Rfb8 {[%emt 0:00:41]} 20. Bc2 {[%emt 0:02:48]} Qd8 {[%emt 0:07:15]} 21. Rfb1 {[%emt 0:03:56]} Bf8 {[%emt 0:12:02]} 22. b4 {[%emt 0:01:28]} Nb7 {[%emt 0:00:08]} 23. Ba4 {[%emt 0:05:09]} f6 {[%emt 0:01:57]} 24. Qc2 {[%emt 0:06:52]} Qe8 {[%emt 0:02:20]} 25. Bxd7 {[%emt 0:04:43]} Qxd7 {[%emt 0:00:02]} 26. Na4 {[%emt 0:00:31]} Qd8 {[%emt 0:09:54]} 27. c5 {[%emt 0:03:59]} dxc5 {[%emt 0:02:11]} 28. bxc5 {[%emt 0:00:15]} bxc5 {[%emt 0:01:19]} 29. Nxc5 {[%emt 0:00:29]} Bxc5 {[%emt 0:03:05]} 30. Bxc5 {[%emt 0:05:24]} Nd6 {[%emt 0:00:30]} 31. Rc1 {[%emt 0:00:30]} Ne7 {[%emt 0:00:13]} 32. Rab1 {[%emt 0:11:26]} Rxb1 {[%emt 0:02:12]} 33. Rxb1 {[%emt 0:00:07]} Rb8 {[%emt 0:00:35]} 34. Rc1 {[%emt 0:01:31]} Rb7 {[%emt 0:00:25]} 35. Kh3 {[%emt 0:01:27]} Qd7 {[%emt 0:00:57]} 36. Rb1 {[%emt 0:01:16]} Rxb1 {[%emt 0:02:38]} 37. Qxb1 {[%emt 0:00:02]} a4 {[%emt 0:00:27]} 38. Qb8 {[%emt 0:01:12]} Nec8 {[%emt 0:01:41]} 39. Bb4 {[%emt 0:00:46]} Kg7 {[%emt 0:00:44]} 40. Ba5 {[%emt 0:00:45]} Ne8 {[%emt 0:00:29]} 41. Nf5+ {[%emt 0:31:08]} Kh7 {[%emt 0:30:30]} 42. Bb4 {[%emt 0:00:00]} c6 {[%emt 0:00:00]} 43. d6 {[%emt 0:00:00]} Ng7 {[%emt 0:00:00]} 44. Nxg7 {[%emt 0:00:00]} Kxg7 {[%emt 0:00:00]} 45. Qc7 {[%emt 0:00:00]} Qxc7 {[%emt 0:00:00]} 46. dxc7 {[%emt 0:00:00]} Kf7 {[%emt 0:00:00]} 47. Kg2 {[%emt 0:00:01]} Ke8 {[%emt 0:00:00]} 48. Kf2 {[%emt 0:00:39]} Kd7 {[%emt 0:00:00]} 49. Bf8 {[%emt 0:00:10]} Kxc7 {[%emt 0:00:00]} 50. Bxh6 {[%emt 0:00:08]} Kd7 {[%emt 0:00:00]} 51. Bf8 {[%emt 0:00:43]} Ke8 {[%emt 0:01:35]} 52. Bc5 {[%emt 0:00:12]} 1-0

[Event "Tirnavia Reti Memorial-IM 2022"]
[Site "Trnava"]
[Date "2022.08.10"]
[Round "1.8"]
[White "Lanc, Alois"]
[Black "Skreko, Igor"]
[Result "1-0"]
[ECO "B50"]
[WhiteElo "2263"]
[BlackElo "2193"]
[Annotator "RC"]
[PlyCount "67"]
[EventDate "2022.08.10"]
[EventType "tourn"]
[EventCountry "SVK"]
[SourceTitle "playchess.com"]
[Source "ChessBase"]
[SourceQuality "1"]
[TimeControl "40/5400+30:1800+30"]

1. e4 {[%emt 0:00:07]} c5 {[%emt 0:00:14]} 2. Nf3 {[%emt 0:00:11]} d6 {[%emt 0:00:02]} 3. Bc4 {[%emt 0:00:13]} Nf6 {[%emt 0:00:14]} 4. Qe2 {[%emt 0:00:50]} e6 {[%emt 0:01:12]} 5. c3 {[%emt 0:02:31]} Be7 {[%emt 0:00:53]} 6. Bb3 {[%emt 0:02:02]} b6 {[%emt 0:03:11]} 7. O-O {[%emt 0:03:33]} O-O {[%emt 0:00:43]} 8. Rd1 {[%emt 0:01:32]} Ba6 {[%emt 0:02:13]} 9. d3 {[%emt 0:00:47]} Nc6 {[%emt 0:00:56]} 10. Bf4 {[%emt 0:04:17]} d5 {[%emt 0:07:17]} 11. e5 {[%emt 0:02:07]} Nd7 {[%emt 0:00:11]} 12. a4 {[%emt 0:07:27]} Re8 {[%emt 0:19:19]} 13. Na3 {[%emt 0:13:19]} Nf8 {[%emt 0:00:30]} 14. Nb5 {[%emt 0:00:30]} Qd7 {[%emt 0:00:30]} 15. d4 {[%emt 0:06:44]} c4 {[%emt 0:09:21]} 16. Bc2 {[%emt 0:01:48]} Bxb5 {[%emt 0:05:33]} 17. axb5 {[%emt 0:00:30]} Na5 {[%emt 0:00:30]} 18. h4 {[%emt 0:00:30]} Ng6 {[%emt 0:00:30]} 19. Bd2 {[%emt 0:15:41]} f5 {[%emt 0:11:29]} 20. exf6 {[%emt 0:02:15]} Bxf6 {[%emt 0:02:30]} 21. h5 {[%emt 0:07:34]} Ne7 {[%emt 0:00:30]} 22. Re1 {[%emt 0:00:30]} Nc8 {[%emt 0:04:22]} 23. h6 {[%emt 0:02:13]} Nd6 {[%emt 0:01:46]} 24. hxg7 {[%emt 0:03:42]} Qxg7 {[%emt 0:00:30]} 25. g3 {[%emt 0:00:30]} Re7 {[%emt 0:04:26]} 26. Bf4 {[%emt 0:03:13]} Nxb5 {[%emt 0:09:39]} 27. Kg2 {[%emt 0:00:27]} Qf8 {[%emt 0:00:17]} 28. Rh1 {[%emt 0:00:56]} Nb7 {[%emt 0:00:30]} 29. Ng5 {[%emt 0:02:32]} Bxg5 {[%emt 0:09:00]} 30. Bxg5 {[%emt 0:00:49]} Ree8 {[%emt 0:01:26]} 31. Be7 {[%emt 0:01:53]} Rxe7 {[%emt 0:00:06]} 32. Qg4+ {[%emt 0:01:10]} Kh8 {[%emt 0:00:20]} 33. Bxh7 {[%emt 0:01:06]} Rg7 {[%emt 0:02:30]} 34. Bf5+ {[%emt 0:02:30]} 1-0

[Event "Tirnavia Reti Memorial-IM 2022"]
[Site "Trnava"]
[Date "2022.08.10"]
[Round "1.9"]
[White "Bures, Jaroslav"]
[Black "Konyves, Almos"]
[Result "1/2-1/2"]
[ECO "E42"]
[WhiteElo "2416"]
[BlackElo "2229"]
[Annotator "RC"]
[PlyCount "104"]
[EventDate "2022.08.10"]
[EventType "tourn"]
[EventCountry "SVK"]
[SourceTitle "playchess.com"]
[Source "ChessBase"]
[SourceQuality "1"]
[TimeControl "40/5400+30:1800+30"]

1. d4 {[%emt 0:00:06]} Nf6 {[%emt 0:00:17]} 2. c4 {[%emt 0:00:05]} e6 {[%emt 0:00:09]} 3. Nc3 {[%emt 0:00:06]} Bb4 {[%emt 0:00:17]} 4. e3 {[%emt 0:00:04]} b6 {[%emt 0:00:45]} 5. Nge2 {[%emt 0:01:39]} c5 {[%emt 0:00:37]} 6. a3 {[%emt 0:01:08]} Ba5 {[%emt 0:00:45]} 7. g3 {[%emt 0:02:22]} Bb7 {[%emt 0:01:18]} 8. d5 {[%emt 0:00:04]} b5 {[%emt 0:02:18]} 9. Bg2 {[%emt 0:00:05]} bxc4 {[%emt 0:00:04]} 10. e4 {[%emt 0:00:05]} exd5 {[%emt 0:06:24]} 11. exd5 {[%emt 0:00:02]} O-O {[%emt 0:02:17]} 12. O-O {[%emt 0:00:18]} d6 {[%emt 0:03:35]} 13. Bf4 {[%emt 0:00:01]} Nbd7 {[%emt 0:03:53]} 14. Bxd6 {[%emt 0:00:40]} Re8 {[%emt 0:00:04]} 15. Qc2 {[%emt 0:09:03]} Ne5 {[%emt 0:16:40]} 16. Bxc5 {[%emt 0:00:36]} Nxd5 {[%emt 0:07:52]} 17. Nxd5 {[%emt 0:10:35]} Bxd5 {[%emt 0:03:01]} 18. Rad1 {[%emt 0:18:23]} Nd3 {[%emt 0:00:04]} 19. b4 {[%emt 0:00:07]} Bxg2 {[%emt 0:14:07]} 20. Kxg2 {[%emt 0:00:11]} Qd5+ {[%emt 0:04:55]} 21. Kg1 {[%emt 0:00:01]} Qe4 {[%emt 0:02:31]} 22. Nc3 {[%emt 0:02:35]} Qf3 {[%emt 0:09:33]} 23. bxa5 {[%emt 0:24:01]} Nxc5 {[%emt 0:04:38]} 24. Rd4 {[%emt 0:09:26]} Ne6 {[%emt 0:04:35]} 25. Rxc4 {[%emt 0:03:13]} Rac8 {[%emt 0:03:17]} 26. Ne2 {[%emt 0:03:20]} Rxc4 {[%emt 0:04:26]} 27. Qxc4 {[%emt 0:00:01]} Qxa3 {[%emt 0:02:35]} 28. Qc3 {[%emt 0:06:21]} Qa2 {[%emt 0:01:00]} 29. Re1 {[%emt 0:03:28]} Rd8 {[%emt 0:02:04]} 30. h4 {[%emt 0:01:18]} h6 {[%emt 0:00:12]} 31. Nc1 {[%emt 0:01:27]} Qd5 {[%emt 0:00:30]} 32. Re3 {[%emt 0:01:39]} Qb7 {[%emt 0:00:48]} 33. Qb3 {[%emt 0:00:45]} Qc7 {[%emt 0:00:20]} 34. Nd3 {[%emt 0:00:46]} Qxa5 {[%emt 0:00:07]} 35. Ne5 {[%emt 0:01:43]} Qd5 {[%emt 0:01:09]} 36. Qxd5 {[%emt 0:00:24]} Rxd5 {[%emt 0:00:04]} 37. Nc6 {[%emt 0:00:04]} Rd1+ {[%emt 0:00:04]} 38. Kg2 {[%emt 0:00:10]} Ra1 {[%emt 0:01:20]} 39. Rb3 {[%emt 0:01:28]} a5 {[%emt 0:00:32]} 40. Rb8+ {[%emt 0:00:02]} Kh7 {[%emt 0:00:05]} 41. h5 {[%emt 0:31:06]} a4 {[%emt 0:30:36]} 42. Ne5 {[%emt 0:00:46]} Ng5 {[%emt 0:00:00]} 43. f4 {[%emt 0:00:00]} Ra2+ {[%emt 0:00:00]} 44. Kg1 {[%emt 0:00:00]} Ra3 {[%emt 0:00:00]} 45. Kh2 {[%emt 0:00:00]} Nf3+ {[%emt 0:00:00]} 46. Nxf3 {[%emt 0:00:00]} Rxf3 {[%emt 0:00:00]} 47. Ra8 {[%emt 0:00:00]} a3 {[%emt 0:00:00]} 48. Kg2 {[%emt 0:00:00]} Rb3 {[%emt 0:00:00]} 49. f5 {[%emt 0:00:00]} Rb2+ {[%emt 0:00:00]} 50. Kf3 {[%emt 0:00:00]} a2 {[%emt 0:00:00]} 51. Ra7 {[%emt 0:00:00]} Kg8 {[%emt 0:00:00]} 52. Ra8+ {[%emt 0:00:00]} Kh7 {[%emt 0:00:00]} 1/2-1/2

[Event "Tirnavia Reti Memorial-IM 2022"]
[Site "Trnava"]
[Date "2022.08.10"]
[Round "1.10"]
[White "Svana, Peter"]
[Black "Leszko, Bence"]
[Result "1/2-1/2"]
[ECO "D40"]
[WhiteElo "2280"]
[BlackElo "2241"]
[Annotator "RC"]
[PlyCount "138"]
[EventDate "2022.08.10"]
[EventType "tourn"]
[EventCountry "SVK"]
[SourceTitle "playchess.com"]
[Source "ChessBase"]
[SourceQuality "1"]
[TimeControl "40/5400+30:1800+30"]

1. d4 {[%emt 0:00:23]} d5 {[%emt 0:00:05]} 2. Nf3 {[%emt 0:00:44]} e6 {[%emt 0:00:43]} 3. c4 {[%emt 0:00:08]} Nf6 {[%emt 0:00:05]} 4. Nc3 {[%emt 0:00:44]} c5 {[%emt 0:00:08]} 5. e3 {[%emt 0:00:07]} Nc6 {[%emt 0:00:08]} 6. a3 {[%emt 0:00:21]} Be7 {[%emt 0:02:19]} 7. Be2 {[%emt 0:00:20]} a6 {[%emt 0:00:06]} 8. dxc5 {[%emt 0:05:02]} Bxc5 {[%emt 0:00:18]} 9. b4 {[%emt 0:01:34]} Ba7 {[%emt 0:01:09]} 10. Bb2 {[%emt 0:02:51]} O-O {[%emt 0:03:37]} 11. O-O {[%emt 0:11:06]} dxc4 {[%emt 0:02:15]} 12. Bxc4 {[%emt 0:00:15]} b5 {[%emt 0:00:08]} 13. Bd3 {[%emt 0:09:01]} Bb7 {[%emt 0:08:11]} 14. Rc1 {[%emt 0:10:49]} Ne7 {[%emt 0:01:07]} 15. a4 {[%emt 0:05:30]} bxa4 {[%emt 0:01:15]} 16. Nxa4 {[%emt 0:00:41]} Ng6 {[%emt 0:14:33]} 17. Nc5 {[%emt 0:02:29]} Bxf3 {[%emt 0:07:56]} 18. gxf3 {[%emt 0:00:44]} Nd5 {[%emt 0:04:22]} 19. Be4 {[%emt 0:03:28]} Bb8 {[%emt 0:03:00]} 20. f4 {[%emt 0:02:32]} Qh4 {[%emt 0:18:59]} 21. Qd4 {[%emt 0:18:56]} Qh6 {[%emt 0:05:29]} 22. Bxd5 {[%emt 0:03:36]} exd5 {[%emt 0:01:43]} 23. f3 {[%emt 0:06:32]} Nxf4 {[%emt 0:02:36]} 24. Rc2 {[%emt 0:00:59]} Ng6 {[%emt 0:06:08]} 25. f4 {[%emt 0:01:41]} Rd8 {[%emt 0:01:23]} 26. Kh1 {[%emt 0:02:20]} Ne7 {[%emt 0:03:34]} 27. Rg2 {[%emt 0:02:48]} Ng6 {[%emt 0:03:01]} 28. Rg5 {[%emt 0:02:45]} Bc7 {[%emt 0:05:43]} 29. Rxd5 {[%emt 0:03:05]} Ne7 {[%emt 0:01:23]} 30. Rxd8+ {[%emt 0:02:04]} Rxd8 {[%emt 0:00:00]} 31. Qe4 {[%emt 0:00:01]} Rd2 {[%emt 0:02:36]} 32. Rf2 {[%emt 0:00:10]} Qh3 {[%emt 0:00:33]} 33. Rg2 {[%emt 0:01:10]} Rd1+ {[%emt 0:01:00]} 34. Rg1 {[%emt 0:00:30]} Rd2 {[%emt 0:00:46]} 35. Rxg7+ {[%emt 0:01:26]} Kf8 {[%emt 0:00:30]} 36. Rg2 {[%emt 0:00:29]} Rxb2 {[%emt 0:00:28]} 37. Qa8+ {[%emt 0:00:33]} Nc8 {[%emt 0:00:01]} 38. Ne6+ {[%emt 0:00:47]} Ke7 {[%emt 0:01:24]} 39. Nxc7 {[%emt 0:00:20]} Rb1+ {[%emt 0:00:30]} 40. Rg1 {[%emt 0:00:13]} Rxg1+ {[%emt 0:00:09]} 41. Kxg1 {[%emt 0:30:08]} Qxe3+ {[%emt 0:01:37]} 42. Kg2 {[%emt 0:00:00]} Qd2+ {[%emt 0:00:07]} 43. Kg3 {[%emt 0:00:00]} Qc3+ {[%emt 0:00:05]} 44. Kg4 {[%emt 0:00:00]} Qxc7 {[%emt 0:00:06]} 45. Qxa6 {[%emt 0:00:00]} Nd6 {[%emt 0:01:42]} 46. Qe2+ {[%emt 0:00:00]} Kd8 {[%emt 0:02:13]} 47. Qe5 {[%emt 0:00:00]} Qc6 {[%emt 0:00:20]} 48. Qa5+ {[%emt 0:00:00]} Ke8 {[%emt 0:00:33]} 49. Qe5+ {[%emt 0:00:00]} Kd7 {[%emt 0:00:30]} 50. Qe2 {[%emt 0:00:00]} f5+ {[%emt 0:00:04]} 51. Kh5 {[%emt 0:00:00]} Ne4 {[%emt 0:02:08]} 52. Qd1+ {[%emt 0:00:00]} Ke8 {[%emt 0:00:22]} 53. Qg1 {[%emt 0:00:00]} Kf8 {[%emt 0:00:33]} 54. h4 {[%emt 0:00:00]} Qa6 {[%emt 0:05:47]} 55. b5 {[%emt 0:00:00]} Qxb5 {[%emt 0:00:23]} 56. Qg7+ {[%emt 0:00:00]} Ke8 {[%emt 0:00:34]} 57. Qh8+ {[%emt 0:00:00]} Kd7 {[%emt 0:02:36]} 58. Qxh7+ {[%emt 0:00:00]} Kc6 {[%emt 0:00:30]} 59. Qg6+ {[%emt 0:00:00]} Nd6 {[%emt 0:00:00]} 60. Qg2+ {[%emt 0:00:00]} Kc5 {[%emt 0:01:46]} 61. Qf2+ {[%emt 0:00:00]} Kd5 {[%emt 0:00:18]} 62. Qg2+ {[%emt 0:00:00]} Ne4 {[%emt 0:00:34]} 63. Qg8+ {[%emt 0:03:02]} Kd4 {[%emt 0:00:17]} 64. Qg1+ {[%emt 0:00:14]} Kd5 {[%emt 0:01:15]} 65. Qg8+ {[%emt 0:00:07]} Kc5 {[%emt 0:00:41]} 66. Qg1+ {[%emt 0:01:05]} Kc6 {[%emt 0:01:04]} 67. Qg6+ {[%emt 0:00:40]} Nd6 {[%emt 0:00:09]} 68. Qg2+ {[%emt 0:00:30]} Ne4 {[%emt 0:11:51]} 69. Qg6+ {[%emt 0:00:16]} Kd7 {[%emt 0:00:12]} 1/2-1/2

[Event "Tirnavia Reti Memorial-IM 2022"]
[Site "Trnava"]
[Date "2022.08.11"]
[Round "2.6"]
[White "Papp, Levente"]
[Black "Leszko, Bence"]
[Result "1/2-1/2"]
[ECO "D34"]
[WhiteElo "2394"]
[BlackElo "2241"]
[Annotator "RC"]
[PlyCount "52"]
[EventDate "2022.08.10"]
[EventType "tourn"]
[EventCountry "SVK"]
[SourceTitle "playchess.com"]
[Source "ChessBase"]
[SourceQuality "1"]
[TimeControl "40/5400+30:1800+30"]

1. Nf3 {[%emt 0:00:04]} d5 {[%emt 0:05:44]} 2. g3 {[%emt 0:00:28]} Nf6 {[%emt 0:00:22]} 3. Bg2 {[%emt 0:00:06]} e6 {[%emt 0:00:30]} 4. O-O {[%emt 0:00:23]} Be7 {[%emt 0:00:26]} 5. c4 {[%emt 0:00:51]} c5 {[%emt 0:00:08]} 6. cxd5 {[%emt 0:01:57]} exd5 {[%emt 0:00:19]} 7. d4 {[%emt 0:00:06]} O-O {[%emt 0:00:15]} 8. Nc3 {[%emt 0:00:05]} c4 {[%emt 0:00:07]} 9. Ne5 {[%emt 0:02:15]} Nc6 {[%emt 0:00:06]} 10. Bf4 {[%emt 0:03:39]} Bf5 {[%emt 0:04:10]} 11. e3 {[%emt 0:17:37]} Rc8 {[%emt 0:07:49]} 12. g4 {[%emt 0:05:01]} Be6 {[%emt 0:02:20]} 13. Bg3 {[%emt 0:04:16]} Nxe5 {[%emt 0:07:14]} 14. dxe5 {[%emt 0:00:14]} Nxg4 {[%emt 0:00:16]} 15. Nxd5 {[%emt 0:03:34]} Bh4 {[%emt 0:10:44]} 16. Nf4 {[%emt 0:34:08]} Bxg3 {[%emt 0:01:23]} 17. hxg3 {[%emt 0:00:12]} Nxe5 {[%emt 0:01:21]} 18. Qd4 {[%emt 0:04:54]} Qxd4 {[%emt 0:01:49]} 19. exd4 {[%emt 0:00:05]} Nd3 {[%emt 0:00:05]} 20. Nxd3 {[%emt 0:06:41]} cxd3 {[%emt 0:00:04]} 21. Rfd1 {[%emt 0:00:06]} Bf5 {[%emt 0:05:35]} 22. Bf1 {[%emt 0:03:50]} Rc2 {[%emt 0:01:01]} 23. Bxd3 {[%emt 0:00:17]} Bxd3 {[%emt 0:00:04]} 24. Rxd3 {[%emt 0:00:06]} Rxb2 {[%emt 0:00:53]} 25. d5 {[%emt 0:02:14]} Rd8 {[%emt 0:00:28]} 26. Rc1 {[%emt 0:02:41]} Rxa2 {[%emt 0:08:43]} 1/2-1/2